fUST/lending_fUST_20260226
["ID","MTS","AMOUNT","RATE_DAILY","PERIOD"]
[406713082,1772113748651,-500.0,0.00049315,120]
[406713083,1772113748701,-500.0,0.00049315,120]
[406713084,1772113748750,-500.0,0.00049315,120]
[406713085,1772113748801,-3707.74,0.00049315,120]
[406713086,1772113748851,-973.52,0.00049315,120]
[406713087,1772113748906,-2282.11,0.00049315,120]
[406713088,1772113748959,-799.09,0.00049315,120]
[406713089,1772113749014,-1535.63,0.00049315,120]
[406713090,1772113749066,-551.87,0.00049315,120]
[406713091,1772113749116,-500.0,0.00049315,120]
[406713092,1772113749167,-17891.39,0.00049315,120]
[406713093,1772113749216,-15784.34,0.00049315,120]
[406713094,1772113749268,-500.0,0.00049315,120]
[406713095,1772113749323,-500.0,0.00049315,120]
[406713096,1772113749376,-500.0,0.00049315,120]
[406713097,1772113749425,-500.0,0.00049315,120]
[406713098,1772113749475,-521.52402555,0.00049315,120]
[406713099,1772113749525,-500.0,0.00049315,120]
[406713100,1772113749577,-506.09110237,0.00049315,120]
[406713101,1772113749634,-7952.77,0.00049315,120]
[406713102,1772113749687,-1426.22,0.00049315,120]
[406713103,1772113749746,-500.0,0.00049315,120]
[406713104,1772113749807,-500.0,0.00049315,120]
[406713105,1772113749867,-4988.5,0.00049315,120]
[406713106,1772113749924,-730.93,0.00049315,120]
[406713107,1772113749979,-500.0,0.00049315,120]
[406713108,1772113750036,-12003.43,0.00049315,120]
[406713109,1772113750093,-545.41760575,0.00049315,120]
[406713110,1772113750153,-500.0,0.00049315,120]
[406713111,1772113750208,-500.0,0.00049315,120]
[406713112,1772113750434,-3038.71,0.00049315,120]
[406713113,1772113750484,-500.0,0.00049315,120]
[406713114,1772113750539,-918.5,0.00049315,120]
[406713115,1772113750591,-500.0,0.00049315,120]
[406713116,1772113750646,-2349.03,0.00049315,120]
[406713117,1772113750697,-500.0,0.00049315,120]
[406713118,1772113750750,-3103.07,0.00049315,120]
[406713119,1772113750807,-500.0,0.00049315,120]
[406713120,1772113750859,-500.0,0.00049315,120]
[406713121,1772113750911,-643.37,0.00049315,120]
[406713122,1772113750965,-500.0,0.00049315,120]
[406713123,1772113751016,-500.0,0.00049315,120]
[406713124,1772113751067,-4440.9,0.00049315,120]
[406713125,1772113751118,-601.3,0.00049315,120]
[406713126,1772113751170,-660.63,0.00049315,120]
[406713127,1772113751223,-13114.04,0.00049315,120]
[406713128,1772113751272,-500.0,0.00049315,120]
[406713129,1772113751321,-732.56,0.00049315,120]
[406713130,1772113751369,-500.0,0.00049315,120]
[406713131,1772113751416,-2455.77,0.00049315,120]
[406713132,1772113751464,-1958.78,0.00049315,120]
[406713133,1772113751511,-500.0,0.00049315,120]
[406713134,1772113751557,-643.09,0.00049315,120]
[406713135,1772113751603,-500.0,0.00049315,120]
[406713136,1772113751648,-847.24,0.00049315,120]
[406713137,1772113751692,-1118.38,0.00049315,120]
[406713138,1772113751740,-500.0,0.00049315,120]
[406713139,1772113751789,-1959.22,0.00049315,120]
[406713140,1772113751839,-1190.08,0.00049315,120]
[406713141,1772113751886,-500.0,0.00049315,120]
[406713142,1772113751931,-500.0,0.00049315,120]
[406713143,1772113751977,-359.9252917,0.00049315,120]
[406713144,1772113752023,-500.0,0.00049315,120]
[406713145,1772113752071,-500.0,0.00049315,120]
[406713146,1772113752120,-500.0,0.00049315,120]
[406713147,1772113752169,-500.0,0.00049315,120]
[406713148,1772113752220,-1707.0,0.00049315,120]
[406713149,1772113752272,-500.0,0.00049315,120]
[406713150,1772113752326,-997.35,0.00049315,120]
[406713151,1772113752378,-500.0,0.00049315,120]
[406713152,1772113752429,-1818.38,0.00049315,120]
[406713153,1772113752480,-678.4,0.00049315,120]
[406713154,1772113752531,-500.0,0.00049315,120]
[406713155,1772113752583,-500.0,0.00049315,120]
[406713156,1772113752636,-500.0,0.00049315,120]
[406713157,1772113752690,-500.0,0.00049315,120]
[406713158,1772113752740,-500.0,0.00049315,120]
[406713159,1772113752792,-1871.67,0.00049315,120]
[406713160,1772113752842,-763.79,0.00049315,120]
[406713161,1772113752893,-3096.72,0.00049315,120]
[406713162,1772113752949,-343.69813814,0.00049315,120]
[406713163,1772113753007,-500.0,0.00049315,120]
[406713164,1772113753062,-723.19,0.00049315,120]
[406713165,1772113753117,-833.24,0.00049315,120]
[406713166,1772113753169,-516.06394367,0.00049315,120]
[406713167,1772113753220,-3862.98,0.00049315,120]
[406713168,1772113753269,-523.86,0.00049315,120]
[406713169,1772113753316,-500.0,0.00049315,120]
[406713170,1772113753377,-500.0,0.00049315,120]
[406713171,1772113753429,-500.0,0.00049315,120]
[406713172,1772113753479,-500.0,0.00049315,120]
[406713173,1772113753531,-552.31,0.00049315,120]
[406713174,1772113753578,-875.55,0.00049315,120]
[406713175,1772113753628,-500.0,0.00049315,120]
[406713176,1772113753676,-500.0,0.00049315,120]
[406713177,1772113753726,-1275.04,0.00049315,120]
[406713178,1772113753776,-500.0,0.00049315,120]
[406713179,1772113753826,-500.0,0.00049315,120]
[406713180,1772113753878,-3347.45,0.00049315,120]
[406713181,1772113753928,-500.0,0.00049315,120]
[406713182,1772113753978,-500.0,0.00049315,120]
[406713183,1772113754028,-723.57,0.00049315,120]
[406713184,1772113754075,-500.0,0.00049315,120]
[406713185,1772113754123,-3042.22,0.00049315,120]
[406713186,1772113754170,-500.0,0.00049315,120]
[406713187,1772113754223,-500.0,0.00049315,120]
[406713188,1772113754273,-500.0,0.00049315,120]
[406713189,1772113754323,-875.52,0.00049315,120]
[406713190,1772113754372,-3148.07,0.00049315,120]
[406713191,1772113754423,-500.0,0.00049315,120]
[406713192,1772113754474,-182.40003367,0.00049315,120]
[406713193,1772113754527,-500.0,0.00049315,120]
[406713194,1772113754582,-500.0,0.00049315,120]
[406713195,1772113754635,-500.0,0.00049315,120]
[406713196,1772113754687,-500.0,0.00049315,120]
[406713197,1772113754755,-5318.62,0.00049315,120]
[406713198,1772113754814,-500.0,0.00049315,120]
[406713199,1772113754867,-3914.63,0.00049315,120]
[406713200,1772113754920,-500.0,0.00049315,120]
[406713201,1772113754972,-506.52,0.00049315,120]
[406713202,1772113755028,-615.14,0.00049315,120]
[406713203,1772113755083,-500.0,0.00049315,120]
[406713204,1772113755140,-3625.41,0.00049315,120]
[406713205,1772113755197,-652.61,0.00049315,120]
[406713206,1772113755255,-500.0,0.00049315,120]
[406713207,1772113755311,-500.0,0.00049315,120]
[406713208,1772113755364,-556.02,0.00049315,120]
[406713209,1772113755424,-500.0,0.00049315,120]
[406713210,1772113755474,-500.0,0.00049315,120]
[406713211,1772113755526,-500.0,0.00049315,120]
[406713212,1772113755580,-547.88,0.00049315,120]
[406713213,1772113755631,-962.35,0.00049315,120]
[406713214,1772113755684,-500.0,0.00049315,120]
[406713215,1772113755738,-524.84,0.00049315,120]
[406713216,1772113755795,-500.0,0.00049315,120]
[406713217,1772113756085,-500.0,0.00049315,120]
[406713218,1772113756145,-500.0,0.00049315,120]
[406713219,1772113756202,-500.0,0.00049315,120]
[406713220,1772113756261,-500.0,0.00049315,120]
[406713221,1772113756319,-500.0,0.00049315,120]
[406713222,1772113756375,-500.0,0.00049315,120]
[406713223,1772113756436,-1122.78,0.00049315,120]
[406713224,1772113756492,-500.0,0.00049315,120]
[406713225,1772113756548,-500.0,0.00049315,30]
[406713226,1772113756605,-539.03,0.00049315,120]
[406713227,1772113756660,-500.0,0.00049315,120]
[406713228,1772113756712,-3306.27,0.00049315,120]
[406713229,1772113756762,-500.0,0.00049315,120]
[406713230,1772113756815,-500.0,0.00049315,120]
[406713231,1772113756866,-500.0,0.00049315,120]
[406713232,1772113756919,-500.0,0.00049315,120]
[406713233,1772113756970,-500.0,0.00049315,120]
[406713234,1772113757024,-739.94,0.00049315,120]
[406713235,1772113757077,-5805.63,0.00049315,120]
[406713236,1772113757132,-511.12,0.00049315,120]
[406713237,1772113757190,-508.67,0.00049315,120]
[406713238,1772113757248,-8251.68,0.00049315,90]
[406713239,1772113757301,-500.0,0.00049315,120]
[406713240,1772113757357,-1448.34,0.00049315,120]
[406713241,1772113757409,-500.0,0.00049315,120]
[406713242,1772113757460,-500.0,0.00049315,120]
[406713243,1772113757514,-1452.22,0.00049315,120]
[406713244,1772113757568,-1175.91,0.00049315,120]
[406713245,1772113757622,-644.91343191,0.00049315,120]
[406713246,1772113757677,-500.0,0.00049315,120]
[406713247,1772113757728,-500.0,0.00049315,120]
[406713248,1772113757780,-3605.42,0.00049315,120]
[406713249,1772113757831,-500.0,0.00049315,120]
[406713250,1772113757886,-500.0,0.00049315,120]
[406713251,1772113757938,-500.0,0.00049315,120]
[406713252,1772113757994,-500.0,0.00049315,30]
[406713253,1772113758047,-500.0,0.00049315,120]
[406713254,1772113758105,-1797.93,0.00049315,120]
[406713255,1772113758160,-500.0,0.00049315,120]
[406713256,1772113758215,-500.0,0.00049315,120]
[406713257,1772113758270,-500.0,0.00049315,120]
[406713258,1772113758325,-500.0,0.00049315,120]
[406713259,1772113758381,-705.62,0.00049315,120]
[406713260,1772113758436,-500.0,0.00049315,120]
[406713261,1772113758489,-500.0,0.00049315,120]
[406713262,1772113758546,-500.0,0.00049315,120]
[406713263,1772113758604,-500.0,0.00049315,120]
[406713264,1772113758661,-500.0,0.00049315,120]
[406713265,1772113758717,-500.0,0.00049315,120]
[406713266,1772113758781,-500.0,0.00049315,120]
[406713267,1772113758838,-620.21,0.00049315,120]
[406713268,1772113758892,-510.48,0.00049315,120]
[406713269,1772113758947,-500.0,0.00049315,120]
[406713270,1772113759000,-17450.28,0.00049315,120]
[406713271,1772113759053,-500.0,0.00049315,120]
[406713272,1772113759108,-500.0,0.00049315,120]
[406713273,1772113759163,-500.0,0.00049315,120]
[406713274,1772113759220,-500.0,0.00049315,120]
[406713275,1772113759275,-2000.0,0.00049315,120]
[406713276,1772113759331,-2000.0,0.00049315,120]
[406713277,1772113759388,-2000.0,0.00049315,120]
[406713278,1772113759440,-150.0,0.0004937,120]
[406713279,1772113759491,-1444.0,0.0004937,120]
[406713280,1772113759542,-200.0,0.00049375,120]
[406713281,1772113759592,-200.0,0.00049375,120]
[406713282,1772113759641,-361.77,0.000494,90]
[406713283,1772113759689,-360.61,0.000494,90]
[406713284,1772113759737,-804.41,0.000494,120]
[406713285,1772113759787,-162.81602461,0.000494,120]
[406713286,1772113759838,-275.6791422,0.00049425,120]
[406713287,1772113759890,-558.13,0.00049434,30]
[406713288,1772113759941,-1768280.58073731,0.00049444,30]
[406713289,1772113763488,-500.0,0.00011998,2]
[406713290,1772113763512,-484.72904067,0.00011998,2]
[406713291,1772113763534,-15.27095933,0.00011998,2]
[406713292,1772113766580,-300.0,0.00011997,2]
[406713293,1772113766602,-500.0,0.00011998,2]
[406713294,1772113766625,-629.15765946,0.00011998,2]
[406713295,1772113766647,-500.0,0.00011998,2]
[406713296,1772113766668,-500.0,0.00011998,2]
[406713297,1772113766690,-500.0,0.00011998,2]
[406713298,1772113766711,-500.0,0.00011998,2]
[406713299,1772113766732,-500.0,0.00011998,2]
[406713300,1772113766753,-500.0,0.00011998,2]
[406713301,1772113766777,-500.0,0.00011998,2]
[406713302,1772113766796,-484.72904067,0.00011998,2]
[406713303,1772113766817,-243.85027574,0.00011998,2]
[406713304,1772113766837,-6656.5357452,0.00012,2]
[406713305,1772113767052,-32880.59044623,0.00012,2]
[406713306,1772113771061,-635.338928,0.00038356,120]
[406713307,1772113771111,-635.338928,0.00038356,120]
[406713308,1772113771163,-635.338928,0.00038356,120]
[406713309,1772113771212,-635.338928,0.00038356,120]
[406713310,1772113771260,-635.338928,0.00038356,120]
[406713311,1772113771306,-635.338938,0.00038356,120]
[406713312,1772113771358,-202.803659,0.00038356,120]
[406713313,1772113771408,-2130.690931,0.00038356,120]
[406713314,1772113771456,-2130.690931,0.00038356,120]
[406713315,1772113771503,-202.803659,0.00038356,120]
[406713316,1772113771551,-2130.690931,0.00038356,120]
[406713317,1772113771600,-202.803659,0.00038356,120]
[406713318,1772113771649,-2130.690931,0.00038356,120]
[406713319,1772113771696,-202.803659,0.00038356,120]
[406713320,1772113771742,-2130.690931,0.00038356,120]
[406713321,1772113771789,-202.803659,0.00038356,120]
[406713322,1772113771835,-2130.690931,0.00038356,120]
[406713323,1772113771885,-202.803659,0.00038356,120]
[406713324,1772113771932,-151.0,0.00038356,120]
[406713325,1772113771979,-2130.690931,0.00038356,120]
[406713326,1772113772029,-202.803659,0.00038356,120]
[406713327,1772113772077,-249.32345,0.00038356,120]
[406713328,1772113772129,-2130.690931,0.00038356,120]
[406713329,1772113772183,-202.803659,0.00038356,120]
[406713330,1772113772240,-2130.690931,0.00038356,120]
[406713331,1772113772297,-202.803659,0.00038356,120]
[406713332,1772113772354,-2130.690931,0.00038356,120]
[406713333,1772113772411,-2130.690931,0.00038356,120]
[406713334,1772113772463,-202.803659,0.00038356,120]
[406713335,1772113772513,-2130.690931,0.00038356,120]
[406713336,1772113772560,-202.803659,0.00038356,120]
[406713337,1772113772608,-2130.690931,0.00038356,120]
[406713338,1772113772659,-202.803659,0.00038356,120]
[406713339,1772113772710,-2130.690931,0.00038356,120]
[406713340,1772113772761,-202.803659,0.00038356,120]
[406713341,1772113772816,-2130.690931,0.00038356,120]
[406713342,1772113772865,-202.803659,0.00038356,120]
[406713343,1772113772918,-202.803659,0.00038356,120]
[406713344,1772113772967,-2130.690931,0.00038356,120]
[406713345,1772113773016,-202.803659,0.00038356,120]
[406713346,1772113773064,-2130.690931,0.00038356,120]
[406713347,1772113773111,-202.803659,0.00038356,120]
[406713348,1772113773160,-2130.690931,0.00038356,120]
[406713349,1772113773207,-202.803659,0.00038356,120]
[406713350,1772113773256,-2130.690931,0.00038356,120]
[406713351,1772113773302,-202.803659,0.00038356,120]
[406713352,1772113773348,-2130.690932,0.00038356,120]
[406713353,1772113773396,-202.803655,0.00038356,120]
[406713354,1772113773445,-943.83,0.0004,120]
[406713355,1772113773491,-326.5,0.0004,120]
[406713356,1772113773562,-150.0,0.00048424,30]
[406713357,1772113773608,-1000.0,0.00049,30]
[406713358,1772113773656,-808.38,0.00049315,120]
[406713359,1772113773702,-2811.19,0.00049315,120]
[406713360,1772113773750,-500.0,0.00049315,120]
[406713361,1772113773800,-500.0,0.00049315,120]
[406713362,1772113773849,-500.0,0.00049315,120]
[406713363,1772113773901,-6232.76,0.00049315,120]
[406713364,1772113773950,-692.35,0.00049315,120]
[406713365,1772113774002,-1055.28,0.00049315,120]
[406713366,1772113774053,-1117.58,0.00049315,120]
[406713367,1772113774100,-500.0,0.00049315,120]
[406713368,1772113774141,-613.05,0.00049315,120]
[406713369,1772113774190,-1913.62,0.00049315,120]
[406713370,1772113774238,-806.06,0.00049315,120]
[406713371,1772113774287,-500.0,0.00049315,120]
[406713372,1772113774335,-484.61932247,0.00049315,120]
[406713373,1772113774384,-500.0,0.00049315,120]
[406713374,1772113774434,-655.7,0.00049315,120]
[406713375,1772113774481,-500.0,0.00049315,120]
[406713376,1772113774528,-500.0,0.00049315,120]
[406713377,1772113774577,-1730.72,0.00049315,120]
[406713378,1772113774626,-500.0,0.00049315,120]
[406713379,1772113774841,-500.0,0.00049315,120]
[406713380,1772113774906,-1286.28,0.00049315,120]
[406713381,1772113774958,-500.0,0.00049315,120]
[406713382,1772113775009,-500.0,0.00049315,120]
[406713383,1772113775062,-1896.13,0.00049315,120]
[406713384,1772113775120,-726739.11066269,0.00049444,30]
[406713385,1772113775175,-334.0,0.00049444,60]
[406713386,1772113775228,-610.41,0.00049494,120]
[406713387,1772113775278,-3500.0,0.000495,120]
[406713388,1772113775329,-10000.0,0.000495,120]
[406713389,1772113775380,-1000.0,0.00049589,120]
[406713390,1772113775432,-3203.67,0.00049589,120]
[406713391,1772113775481,-500.0,0.00049589,120]
[406713392,1772113775533,-500.0,0.00049589,120]
[406713393,1772113775586,-500.0,0.00049589,120]
[406713394,1772113775638,-500.0,0.00049589,120]
[406713395,1772113775689,-500.0,0.00049589,120]
[406713396,1772113775739,-500.0,0.00049589,120]
[406713397,1772113775788,-500.0,0.00049589,120]
[406713398,1772113775838,-500.0,0.00049589,120]
[406713399,1772113775889,-500.0,0.00049589,120]
[406713400,1772113775939,-500.0,0.00049589,120]
[406713401,1772113775990,-500.0,0.00049589,120]
[406713402,1772113776042,-500.0,0.00049589,120]
[406713403,1772113776095,-500.0,0.00049589,60]
[406713404,1772113776150,-522.46995016,0.00049589,120]
[406713405,1772113776202,-500.0,0.00049589,120]
[406713406,1772113776254,-500.0,0.00049589,120]
[406713407,1772113776306,-500.0,0.00049589,120]
[406713408,1772113776356,-500.0,0.00049589,120]
[406713409,1772113776409,-509.41881604,0.00049589,120]
[406713410,1772113776459,-1000.23,0.00049589,120]
[406713411,1772113776510,-500.0,0.00049589,120]
[406713412,1772113776560,-500.0,0.00049589,120]
[406713413,1772113776608,-530.64,0.00049589,120]
[406713414,1772113776662,-500.0,0.00049589,120]
[406713415,1772113776712,-620.41438529,0.00049589,120]
[406713416,1772113776767,-555.14,0.00049589,120]
[406713417,1772113776822,-500.0,0.00049589,120]
[406713418,1772113776877,-500.0,0.00049589,120]
[406713419,1772113776930,-500.0,0.00049589,120]
[406713420,1772113776983,-20845.25,0.00049589,120]
[406713421,1772113777033,-287.48947699,0.00049589,120]
[406713422,1772113777086,-720.76,0.00049589,120]
[406713423,1772113777138,-1009.28,0.00049589,120]
[406713424,1772113777186,-5494.76,0.00049589,120]
[406713425,1772113777236,-500.0,0.00049589,120]
[406713426,1772113777287,-1839.02,0.00049589,120]
[406713427,1772113777339,-768.37,0.00049589,120]
[406713428,1772113777391,-893.54,0.00049589,120]
[406713429,1772113777442,-3000.0,0.00049589,120]
[406713430,1772113777496,-500.0,0.00049589,120]
[406713431,1772113777551,-911.29,0.00049589,120]
[406713432,1772113777604,-500.0,0.00049589,120]
[406713433,1772113777657,-500.0,0.00049589,120]
[406713434,1772113777709,-500.0,0.00049589,120]
[406713435,1772113777760,-516.77,0.00049589,120]
[406713436,1772113777812,-1374.44,0.00049589,120]
[406713437,1772113777864,-1983.34,0.00049589,120]
[406713438,1772113777915,-500.0,0.00049589,120]
[406713439,1772113777966,-500.0,0.00049589,120]
[406713440,1772113778019,-1318.28,0.00049589,120]
[406713441,1772113778073,-472.09661236,0.00049589,120]
[406713442,1772113778126,-1099.66,0.00049589,120]
[406713443,1772113778181,-500.0,0.00049589,120]
[406713444,1772113778235,-500.0,0.00049589,120]
[406713445,1772113778286,-2624.84,0.00049589,120]
[406713446,1772113778338,-500.0,0.00049589,120]
[406713447,1772113778387,-541.98723927,0.00049589,120]
[406713448,1772113778435,-500.0,0.00049589,120]
[406713449,1772113778482,-500.0,0.00049589,120]
[406713450,1772113778531,-1204.15,0.00049589,120]
[406713451,1772113778582,-500.0,0.00049589,120]
[406713452,1772113778634,-903.2,0.00049589,120]
[406713453,1772113778682,-3187.62,0.00049589,120]
[406713454,1772113778730,-500.0,0.00049589,120]
[406713455,1772113778779,-500.0,0.00049589,120]
[406713456,1772113778829,-2798.47,0.00049589,120]
[406713457,1772113778881,-500.0,0.00049589,120]
[406713458,1772113778932,-500.0,0.00049589,120]
[406713459,1772113778987,-1299.09,0.00049589,120]
[406713460,1772113779043,-500.0,0.00049589,120]
[406713461,1772113779094,-3273.8,0.00049589,120]
[406713462,1772113779145,-438.32142746,0.00049589,120]
[406713463,1772113779195,-1624.63,0.00049589,120]
[406713464,1772113779247,-500.0,0.00049589,120]
[406713465,1772113779300,-3397.83,0.00049589,120]
[406713466,1772113779353,-694.59,0.00049589,120]
[406713467,1772113779410,-2605.97,0.00049589,120]
[406713468,1772113779466,-500.0,0.00049589,120]
[406713469,1772113779525,-500.0,0.00049589,120]
[406713470,1772113779584,-500.0,0.00049589,120]
[406713471,1772113779646,-396.38097372,0.00049589,120]
[406713472,1772113779702,-500.0,0.00049589,120]
[406713473,1772113779756,-500.0,0.00049589,120]
[406713474,1772113779811,-500.0,0.00049589,120]
[406713475,1772113779865,-500.0,0.00049589,120]
[406713476,1772113779919,-500.0,0.00049589,120]
[406713477,1772113779974,-500.0,0.00049589,120]
[406713478,1772113780029,-801.81,0.00049589,120]
[406713479,1772113780082,-500.0,0.00049589,120]
[406713480,1772113780136,-500.0,0.00049589,120]
[406713481,1772113780190,-500.0,0.00049589,120]
[406713482,1772113780244,-479.84100541,0.00049589,120]
[406713483,1772113780463,-500.0,0.00049589,120]
[406713484,1772113780516,-500.0,0.00049589,30]
[406713485,1772113780567,-1610.75,0.00049589,120]
[406713486,1772113780615,-2888.95,0.00049589,120]
[406713487,1772113780664,-649.57,0.00049589,120]
[406713488,1772113780712,-500.0,0.00049589,120]
[406713489,1772113780759,-621.19,0.00049589,120]
[406713490,1772113780810,-500.0,0.00049589,120]
[406713491,1772113780862,-500.0,0.00049589,120]
[406713492,1772113780912,-500.0,0.00049589,120]
[406713493,1772113780965,-1265.47,0.00049589,120]
[406713494,1772113781017,-1039.77,0.00049589,120]
[406713495,1772113781068,-500.0,0.00049589,120]
[406713496,1772113781120,-663.05,0.00049589,120]
[406713497,1772113781182,-500.0,0.00049589,120]
[406713498,1772113781237,-500.0,0.00049589,120]
[406713499,1772113781288,-1147.85,0.00049589,120]
[406713500,1772113781337,-1125.55,0.00049589,120]
[406713501,1772113781386,-717.18,0.00049589,120]
[406713502,1772113781440,-500.0,0.00049589,120]
[406713503,1772113781491,-500.0,0.00049589,120]
[406713504,1772113781546,-500.0,0.00049589,120]
[406713505,1772113781594,-500.0,0.00049589,120]
[406713506,1772113781642,-500.0,0.00049589,120]
[406713507,1772113781689,-500.0,0.00049589,120]
[406713508,1772113781735,-500.0,0.00049589,120]
[406713509,1772113781782,-525.10809382,0.00049589,120]
[406713510,1772113781830,-500.0,0.00049589,120]
[406713511,1772113781880,-500.0,0.00049589,120]
[406713512,1772113781925,-632.92775584,0.00049589,120]
[406713513,1772113781972,-500.0,0.00049589,120]
[406713514,1772113782020,-989.9,0.00049589,120]
[406713515,1772113782068,-500.0,0.00049589,120]
[406713516,1772113782119,-500.0,0.00049589,120]
[406713517,1772113782173,-515.43,0.00049589,30]
[406713518,1772113782221,-500.0,0.00049589,120]
[406713519,1772113782273,-513.22,0.00049589,120]
[406713520,1772113782326,-500.0,0.00049589,120]
[406713521,1772113782381,-500.0,0.00049589,120]
[406713522,1772113782439,-1621.34,0.00049589,120]
[406713523,1772113782494,-500.0,0.00049589,120]
[406713524,1772113782549,-500.0,0.00049589,120]
[406713525,1772113782602,-500.0,0.00049589,120]
[406713526,1772113782656,-559.84,0.00049589,120]
[406713527,1772113782707,-500.0,0.00049589,120]
[406713528,1772113782756,-500.0,0.00049589,120]
[406713529,1772113782808,-500.0,0.00049589,120]
[406713530,1772113782857,-500.0,0.00049589,120]
[406713531,1772113782907,-500.0,0.00049589,120]
[406713532,1772113782956,-500.0,0.00049589,120]
[406713533,1772113783001,-500.0,0.00049589,120]
[406713534,1772113783048,-868.39,0.00049589,120]
[406713535,1772113783092,-588.03,0.00049589,120]
[406713536,1772113783138,-500.0,0.00049589,120]
[406713537,1772113783182,-500.0,0.00049589,120]
[406713538,1772113783230,-500.0,0.00049589,120]
[406713539,1772113783275,-500.0,0.00049589,120]
[406713540,1772113783322,-500.0,0.00049589,120]
[406713541,1772113783372,-500.0,0.00049589,120]
[406713542,1772113783434,-500.0,0.00049589,120]
[406713543,1772113783482,-500.0,0.00049589,120]
[406713544,1772113783531,-1509.58,0.00049589,120]
[406713545,1772113783598,-521.27454969,0.00049589,120]
[406713546,1772113783661,-500.0,0.00049589,120]
[406713547,1772113783713,-526.55,0.00049589,120]
[406713548,1772113783763,-500.0,0.00049589,120]
[406713549,1772113783815,-248.00130624,0.00049589,120]
[406713550,1772113783865,-908.92,0.00049589,120]
[406713551,1772113783924,-500.0,0.00049589,120]
[406713552,1772113783989,-468.05661754,0.00049589,120]
[406713553,1772113784043,-500.0,0.00049589,120]
[406713554,1772113784095,-500.0,0.00049589,120]
[406713555,1772113784146,-550.35932944,0.00049589,120]
[406713556,1772113784194,-341.86978955,0.00049589,120]
[406713557,1772113784244,-1021.51,0.00049589,120]
[406713558,1772113784294,-500.0,0.00049589,120]
[406713559,1772113784345,-681.31,0.00049589,120]
[406713560,1772113784393,-3415.5,0.00049589,120]
[406713561,1772113784441,-500.0,0.00049589,120]
[406713562,1772113784487,-1129.63,0.00049589,120]
[406713563,1772113784534,-730.2,0.00049589,120]
[406713564,1772113784583,-500.0,0.00049589,120]
[406713565,1772113784635,-500.0,0.00049589,120]
[406713566,1772113784688,-500.0,0.00049589,120]
[406713567,1772113784742,-880.08,0.00049589,120]
[406713568,1772113784800,-500.0,0.00049589,120]
[406713569,1772113784855,-500.0,0.00049589,120]
[406713570,1772113784911,-509.53,0.00049589,120]
[406713571,1772113784967,-500.0,0.00049589,120]
[406713572,1772113785025,-500.0,0.00049589,120]
[406713573,1772113785080,-851.5,0.00049589,120]
[406713574,1772113785135,-500.0,0.00049589,120]
[406713575,1772113785191,-639.9,0.00049589,120]
[406713576,1772113785245,-1062.15,0.00049589,120]
[406713577,1772113785297,-703.14,0.00049589,120]
[406713578,1772113785350,-3854.16,0.00049589,120]
[406713579,1772113785401,-570.1227185,0.00049589,120]
[406713580,1772113785451,-1109.82,0.00049589,30]
[406713581,1772113785499,-647.77,0.00049589,120]